Cogmind - Beta 13 X1 @@@ ROGUE MODE // 2023.06.27 @ 08:50:27 Player: maxwell Result: Destroyed by as-19898 with Assembled Heavy Rifle Performance ------------- Evolutions (3) 1500 Regions Visited (9) 1800 Robots Destroyed (42) 210 Value Destroyed (1356) 1356 Prototype IDs (28) 560 Alien Tech Used (0) 0 Bonus (1951) 1951 TOTAL SCORE: 7377 Bonus ------- Destroyed Z-Imprinter 1000 Triggered Deep Caves Wall 500 Exposed GOLEM Chamber 500 Friendly Fire -49 Cogmind --------- Core Integrity 0/700 Matter 209/300 Energy 64/100 System Corruption 5% Temperature Cool (0) Movement Core (50) Location -7/Deep Caves Parts ------- > --- POWER (2) -------- (None) > --- PROPULSION (5) --- (None) > --- UTILITY (4) ------ Experimental Heat Sink GOLEM Unit > --- WEAPON (2) ------- (None) > --- INVENTORY (5) ---- Zionite Weapon Casing GOLEM Unit GOLEM Unit Peak State ------------ > --- POWER ------------ Micro Nuclear Core Micro Nuclear Core > --- PROPULSION ------- Makeshift Flight Unit Flightbrick > --- UTILITY ---------- Medium Storage Unit Advanced Weight Redist. System Advanced Visual Processing Unit Experimental Sensor Array Improved Signal Interpreter Improved Light Armor Plating Hacking Drone Bay > --- WEAPON ----------- Heavy Particle Gun CR-A16's Pointy Stick > --- INVENTORY -------- Micro Nuclear Core Huge Storage Unit Improved Reaction Control System Thermal Shield EM Pulse Cannon EM Pulse Cannon Heavy Missile Launcher Heavy Missile Launcher Heavy Missile Launcher [Rating: 90] Favorites ----------- Power Micro Nuclear Core Engine Ion Engine Power Core Micro Nuclear Core Reactor Zionite Light DM Reactor Propulsion Light Treads Treads Light Treads Leg Aluminum Leg Wheel Wheel Hover Unit Hover Unit Flight Unit Flightbrick Utility Medium Storage Unit Device Advanced Weight Redist. System Storage Medium Storage Unit Processor Improved Signal Interpreter Protection Core Shielding Weapon Light Assault Rifle Energy Gun Heavy Particle Gun Energy Cannon EM Pulse Cannon Ballistic Gun Light Assault Rifle Launcher Heavy Missile Launcher Impact Weapon Great Maul Piercing Weapon CR-A16's Pointy Stick Build | -11 -10 -10 -10 -8 -7 -7 -7 -7 -7 ------- Run | Jun Mat Min Sub Mat Fac Low Low Zio Dee Slots Evolved 6 | . . . . 4 2 . . . . Power 1 | . . . . 1 . . . . . Propulsion 3 | . . . . 2 1 . . . . Utility 2 | . . . . 1 1 . . . . Weapon . | . . . . . . . . . . Parts Attached 90 | . 6 . 9 17 . 4 6 6 42 Power 9 | . . . 1 4 . . 1 1 2 Engine 3 | . . . 1 2 . . . . . Core 4 | . . . . 2 . . 1 1 . Reactor 2 | . . . . . . . . . 2 Propulsion 14 | . 2 . 1 1 . 1 1 . 8 Treads 2 | . 2 . . . . . . . . Leg . | . . . . . . . . . . Wheel 1 | . . . 1 . . . . . . Hover 8 | . . . . . . . . . 8 Flight 3 | . . . . 1 . 1 1 . . Utility 35 | . 3 . . 8 . 1 3 2 18 Device 16 | . . . . 4 . . 2 2 8 Storage 8 | . 2 . . 1 . . . . 5 Processor 3 | . . . . 1 . 1 1 . . Hackware . | . . . . . . . . . . Protection 8 | . 1 . . 2 . . . . 5 Artifact . | . . . . . . . . . . Weapon 32 | . 1 . 7 4 . 2 1 3 14 Energy Gun 13 | . . . 1 2 . 1 . . 9 Energy Cannon 4 | . . . 2 . . . . . 2 Ballistic Gun 4 | . 1 . 3 . . . . . . Ballistic Cannon . | . . . . . . . . . . Launcher 5 | . . . 1 1 . 1 . . 2 Special Weapon . | . . . . . . . . . . Impact Weapon 3 | . . . . 1 . . 1 1 . Slashing Weapon . | . . . . . . . . . . Piercing Weapon 3 | . . . . . . . . 2 1 Special Melee Weapon . | . . . . . . . . . . Unidentified Prototypes 16 | . . . . 2 . . . 1 13 Corrupted Parts 3 | . . . . . . . . . 3 System Corruption 5 | . . . . . . . . . 5 Parts Lost 28 | . . . 2 . . . 1 . 25 Power 5 | . . . 1 . . . . . 4 Propulsion 12 | . . . 1 . . . 1 . 10 Utility 7 | . . . . . . . . . 7 Weapon 4 | . . . . . . . . . 4 Highest Loss Streak 9 | . . . 1 . . . 1 . 9 To Critical Strikes . | . . . . . . . . . . Average Slot Usage (%) 86 | . 99 100 98 56 62 74 77 80 83 Engine 6 | . 14 14 13 1 . . . . . Core 4 | . . . . 11 12 12 12 12 2 Reactor 2 | . . . . . . . . . 10 Treads 9 | . 18 28 15 . . . . . . Wheel 2 | . . . 12 . . . . . . Hover 5 | . . . . . . . . . 23 Flight 3 | . . . . 7 6 11 9 12 2 Device 7 | . . . . 9 12 12 13 18 13 Storage 10 | . 14 14 14 6 6 6 6 6 8 Processor 3 | . . . . 2 6 12 16 12 1 Protection 9 | . 13 14 14 6 6 6 6 6 5 Energy Gun 4 | . 9 . . 5 6 3 6 6 6 Ballistic Gun 10 | . 18 28 22 . . . . . . Launcher 1 | . . . 4 . . 2 . . 1 Impact Weapon 1 | . . . . 4 6 6 5 1 . Naked Turns . | . . . . . . . . . . Heaviest Build 66 | 13 29 28 38 33 33 37 34 34 66 Greatest Support 64 | 20 40 40 40 33 33 37 41 41 64 Greatest Overweight (x) 7 | . . . 1 . . . 1 . 7 Average Overweight (x) . | . . . . . . . . . . Largest Inventory Capacity 15 | . 15 15 15 15 10 10 10 10 10 Average Capacity 11 | . 11 15 15 9 10 10 10 10 9 Most Carried 15 | . 10 13 15 15 10 10 10 10 10 Average Carried 10 | . 8 11 13 8 9 9 9 9 7 Final Capacity 15 | 8 15 15 15 10 10 10 10 10 5 Final Carried 15 | 6 10 13 15 9 10 10 10 10 5 Class Distribution -------------------- 59% | Mutant 24% | Scout 15% | Scavenger-Mutant Dominant Class ---------------- Mutant | -10/Materials Mutant | -10/Mines Mutant | -10/Subcaves Mutant | -8/Materials Mutant | -7/Factory Scout | -7/Lower Caves Scout | -7/Lower Caves Scout | -7/Zion Scavenger-Mutant | -7/Deep Caves Resources | -11 -10 -10 -10 -8 -7 -7 -7 -7 -7 ----------- Run | Jun Mat Min Sub Mat Fac Low Low Zio Dee Matter Collected 1469 | 200 105 24 216 51 . 211 92 51 519 Remotely . | . . . . . . . . . . Salvage Created 1777 | . 246 87 303 81 . 58 161 . 841 Parts 110 | . 23 11 24 8 . 3 9 . 32 Haulers Intercepted 1 | . 1 . . . . . . . . Recyclers Shooed . | . . . . . . . . . . Parts Field Recycled . | . . . . . . . . . . Retrieved Matter . | . . . . . . . . . . Parts Self-Destructed 19 | . . . 3 . . 7 9 . . Prevented . | . . . . . . . . . . Kills | -11 -10 -10 -10 -8 -7 -7 -7 -7 -7 ------- Run | Jun Mat Min Sub Mat Fac Low Low Zio Dee Combat Hostiles Destroyed 53 | . 9 6 6 5 . 2 2 . 23 Melee 5 | . . . . . . 1 2 . 2 Guns 28 | . 9 6 1 . . . . . 12 AOE 18 | . . . 5 5 . . . . 8 Classes Destroyed 15 | . 3 . 3 1 . 1 3 . 4 Worker 1 | . . . . 1 . . . . . Hauler 1 | . 1 . . . . . . . . Minesweeper 1 | . . . . . . . 1 . . Swarmer 18 | . 6 6 3 3 . . . . . Grunt 6 | . 3 . . 2 . . 1 . . Hunter 1 | . . . . . . . 1 . . Programmer 2 | . . . . . . 2 . . . Artisan 1 | . . . 1 . . . . . . Cobbler 1 | . . . 1 . . . . . . Subdweller 3 | . . . 3 . . . . . . Z-Technician 4 | . . . . . . . . . 4 Z-Light 7 | . . . . . . . . . 7 Samaritan 1 | . . . . . . . 1 . . Assembled 14 | . . . . . . . . . 14 Golem 1 | . . . . . . . . . 1 Best Kill Streak 6 | . 4 3 3 6 . 1 2 . 5 Combat Bots Only 5 | . 3 3 3 5 . 1 2 . 5 Max Kills in Single Turn 3 | . 2 1 2 3 . 1 1 . 2 Gunslinging 1 | . 1 . . . . . . . . Exploded 3 | . . . 2 3 . . . . 2 Melee 1 | . . . . . . 1 1 . 1 Uniques/NPCs Destroyed 1 | . . . . . . . . . 1 Z-Imprinter (-7/Deep Caves) Combat | -11 -10 -10 -10 -8 -7 -7 -7 -7 -7 -------- Run | Jun Mat Min Sub Mat Fac Low Low Zio Dee Damage Taken 5203 | . 298 148 173 264 113 478 243 . 3486 Core 828 | . 36 8 76 . 6 57 14 . 631 Absorbed by Shields . | . . . . . . . . . . Redirected to Shielding 185 | . 8 1 15 . . . . . 161 Ignored by Resistances 306 | . . . . . . . . . 306 Regen/Repaired (Parts) 11 | . . . . 11 . . . . . Core Remaining (%) 84 | 100 . . 52 100 . . . . . Volleys Fired 150 | . 26 12 52 1 . 13 . . 46 Largest 2 | . 2 2 2 1 . 1 . . 2 Hottest 126 | . 60 40 80 33 . 55 . . 126 Shots Fired 260 | . 52 24 89 1 . 13 . . 81 Gun 227 | . 52 24 76 . . 12 . . 63 Cannon 13 | . . . 3 . . . . . 10 Launcher 20 | . . . 10 1 . 1 . . 8 Special . | . . . . . . . . . . Kinetic 147 | . 49 24 74 . . . . . . Thermal 68 | . . . 3 . . 12 . . 53 Explosive 20 | . . . 10 1 . 1 . . 8 Electromagnetic 15 | . 3 . 2 . . . . . 10 Phasic 10 | . . . . . . . . . 10 Robot Hit Streak 18 | . 8 3 18 5 . 4 . . 9 Robot Miss Streak 3 | . 2 3 2 . . 3 . . 3 Penetration Max . | . . . . . . . . . . Secondary Targets 6 | . 3 2 . . . . . . 1 Max Gunslinging Chain 1 | . 1 1 . . . . . . 1 Autonomous 10 | . . . . . . . . . 10 Shots Hit Robots 191 | . 33 14 71 1 . 10 4 . 58 Core Hits 104 | . 17 9 26 7 . 1 2 . 42 Critical Kills 3 | . . 1 1 . . . 1 . . Critical Parts Destroyed 1 | . . . . . . . 1 . . Critical Strikes 7 | . . 1 1 . . . 2 . 3 Destroy 2 | . . 1 1 . . . . . . Smash 2 | . . . . . . . 2 . . Impale 3 | . . . . . . . . . 3 Melee Attacks 85 | . . . . 6 4 20 10 11 34 Impact 50 | . . . . 6 4 20 10 10 . Slashing . | . . . . . . . . . . Piercing 35 | . . . . . . . . 1 34 Sneak Attacks 7 | . . . . . . . 3 . 4 Combat Hostiles 1 | . . . . . . . 1 . . Follow-up Attacks . | . . . . . . . . . . Damage Inflicted 5380 | . 284 127 974 703 . 349 338 . 2605 Guns 2023 | . 271 127 528 . . 142 . . 955 Cannons 89 | . . . . . . . . . 89 Explosions 1969 | . . . 446 703 . 50 . . 770 Melee 1268 | . . . . . . 157 338 . 773 Ramming 31 | . 13 . . . . . . . 18 Kinetic 858 | . 228 127 503 . . . . . . Thermal 1526 | . . . . 496 . 142 . . 888 Explosive 1408 | . . . 446 207 . 50 . . 705 Electromagnetic 157 | . 43 . 25 . . . . . 89 Impact 495 | . . . . . . 157 338 . . Slashing . | . . . . . . . . . . Piercing 773 | . . . . . . . . . 773 Phasic 132 | . . . . . . . . . 132 Highest Corruption 5 | . . . . . . 3 3 3 5 Average Corruption 3 | . . . . . . 1 3 3 4 Corruption Purged . | . . . . . . . . . . Corruption Blocked . | . . . . . . . . . . Effects 32 | . . . . . . 2 5 . 25 Message Errors 5 | . . . . . . 1 . . 4 Matter Fused 9 | . . . . . . 1 1 . 7 Heat Flow Errors 4 | . . . . . . . 1 . 3 Energy Discharges 3 | . . . . . . . 2 . 1 Parts Rejected 1 | . . . . . . . . . 1 Data Loss (minor) 7 | . . . . . . . . . 7 Data Loss (major) 2 | . . . . . . . 1 . 1 Misfires 1 | . . . . . . . . . 1 Overload Shots . | . . . . . . . . . . Overflow Damage 415 | . . . 43 23 . 18 182 . 149 Projectiles . | . . . . . . . . . . Explosions 66 | . . . 43 23 . . . . . Melee 349 | . . . . . . 18 182 . 149 Knockbacks 1 | . . . . . . 1 . . . Impact 1 | . . . . . . 1 . . . Kinetic . | . . . . . . . . . . Secondary . | . . . . . . . . . . Self-Inflicted Damage 74 | . . . 6 . . . . . 68 Shots 3 | . . . 1 . . . . . 2 Rammed 5 | . 2 1 . . . . . . 2 Targets Rammed 5 | . 2 1 . . . . . . 2 Kicked . | . . . . . . . . . . Crushed . | . . . . . . . . . . Highest Temperature 336 | . 20 . . 7 4 336 183 . 297 Average Temperature 95 | . 10 . . 3 3 157 55 . 88 Received Heat Transfer 1078 | . 54 . 45 63 36 54 117 . 709 Siege Activations . | . . . . . . . . . . Robots Corrupted 1 | . . . . . . . . . 1 Combat Hostiles 1 | . . . . . . . . . 1 Parts Fried . | . . . . . . . . . . Impact Corruptions 10 | . . . . . . 3 7 . . Robots Melted . | . . . . . . . . . . Combat Hostiles . | . . . . . . . . . . Parts Melted 5 | . . . 1 . . 1 . . 3 Heat Transferred 1769 | . . . . 350 . 222 . . 1197 Parts Sabotaged . | . . . . . . . . . . Parts Stolen . | . . . . . . . . . . Parts Stripped . | . . . . . . . . . . Power Chain Reactions 1 | . . . . . . . . . 1 Missiles Intercepted . | . . . . . . . . . . Alert | -11 -10 -10 -10 -8 -7 -7 -7 -7 -7 ------- Run | Jun Mat Min Sub Mat Fac Low Low Zio Dee Peak Influence 507 | . 158 122 . 507 416 . . . . Initial 140 | . . 52 . . 140 . . . . Average 118 | . 53 44 . 325 295 . . . . Maximum Alert Level 2 | . . . . 2 2 . . . . Low Security (%) 79 | . 100 100 . 17 39 . . . . Level 1 10 | . . . . 41 28 . . . . Level 2 10 | . . . . 40 32 . . . . Level 3 . | . . . . . . . . . . Level 4 . | . . . . . . . . . . Level 5 . | . . . . . . . . . . High Security . | . . . . . . . . . . Max Security . | . . . . . . . . . . Squads Dispatched 4 | . 3 . . . 1 . . . . Investigation 2 | . 1 . . . 1 . . . . Extermination . | . . . . . . . . . . Reinforcement 2 | . 2 . . . . . . . . Assault . | . . . . . . . . . . Garrison . | . . . . . . . . . . Intercept . | . . . . . . . . . . Searches Triggered . | . . . . . . . . . . Construction Impeded . | . . . . . . . . . . Haulers Reinforced . | . . . . . . . . . . Active Scanning Responses . | . . . . . . . . . . Cargo Convoy Interrupts . | . . . . . . . . . . Stealth | -11 -10 -10 -10 -8 -7 -7 -7 -7 -7 --------- Run | Jun Mat Min Sub Mat Fac Low Low Zio Dee Distress Signals 2 | . . . . 2 . . . . . Communications Jammed . | . . . . . . . . . . Distress Signals . | . . . . . . . . . . Times Spotted 119 | . 13 6 6 13 3 15 11 . 52 Peak Tracking Total 35 | . 5 3 3 6 3 6 7 . 35 Tactical Retreats 16 | . . 1 . 4 . 5 4 . 2 Traps | -11 -10 -10 -10 -8 -7 -7 -7 -7 -7 ------- Run | Jun Mat Min Sub Mat Fac Low Low Zio Dee Traps Triggered 2 | . 2 . . . . . . . . Indirectly . | . . . . . . . . . . Trap Hack Attempts . | . . . . . . . . . . Triggered . | . . . . . . . . . . Disarmed . | . . . . . . . . . . Reprogrammed . | . . . . . . . . . . Reused 1 | . . . . . . . . . 1 Traps Extracted . | . . . . . . . . . . Installed 3 | . . . . . . . . . 3 Triggered 1 | . . . . . . . 1 . . Fabricated Traps 3 | . . . . . . . . . 3 Machines | -11 -10 -10 -10 -8 -7 -7 -7 -7 -7 ---------- Run | Jun Mat Min Sub Mat Fac Low Low Zio Dee Machines Disabled 8 | . . . 1 2 . . . 2 3 Max in Single Turn 2 | . . . 1 2 . . . 1 1 Garrison Access 1 | . . . . . 1 . . . . Machines Repaired . | . . . . . . . . . . Machines Sabotaged . | . . . . . . . . . . Overloaded Fab Kills . | . . . . . . . . . . Hacking | -11 -10 -10 -10 -8 -7 -7 -7 -7 -7 --------- Run | Jun Mat Min Sub Mat Fac Low Low Zio Dee Machines Accessed 14 | . 1 . 1 6 5 . 1 . . Terminals 8 | . 1 . . 4 3 . . . . Fabricators 1 | . . . . . 1 . . . . Repair Stations 1 | . . . . 1 . . . . . Recycling Units . | . . . . . . . . . . Scanalyzers 1 | . . . . 1 . . . . . Garrison Access 1 | . . . . . 1 . . . . Total Hacks 33 | . 1 . 1 19 11 . 1 . . Successful 17 | . 1 . 1 10 4 . 1 . . Failed 16 | . . . . 9 7 . . . . Catastrophic 2 | . . . . 1 1 . . . . Database Lockouts . | . . . . . . . . . . Manual 22 | . 1 . . 13 8 . . . . Terminals 20 | . 1 . . 12 7 . . . . Fabricators 2 | . . . . . 2 . . . . Repair Stations 4 | . . . . 4 . . . . . Recycling Units . | . . . . . . . . . . Scanalyzers 3 | . . . . 3 . . . . . Garrison Access 2 | . . . . . 2 . . . . Terminal Hacks 4 | . . . 1 2 . . 1 . . Robot Analysis 1 | . . . . 1 . . . . . Open Door 1 | . . . . . . . 1 . . Locate Traps 1 | . . . . 1 . . . . . Derelict Proto ID Bank 1 | . . . 1 . . . . . . Fabricator Hacks 1 | . . . . . 1 . . . . Network Status 1 | . . . . . 1 . . . . Repair Station Hacks 2 | . . . . 2 . . . . . Scan Component 1 | . . . . 1 . . . . . Repair 1 | . . . . 1 . . . . . Recycling Unit Hacks . | . . . . . . . . . . Scanalyzer 2 | . . . . 2 . . . . . Insert Component 1 | . . . . 1 . . . . . Analyze 1 | . . . . 1 . . . . . Garrison Access Hacks . | . . . . . . . . . . Unauthorized Hacks 8 | . 1 . . 4 3 . . . . Terminals 6 | . 1 . . 4 1 . . . . Assimilate 1 | . 1 . . . . . . . . Botnet 4 | . . . . 3 1 . . . . Operators 1 | . . . . 1 . . . . . Fabricators 1 | . . . . . 1 . . . . Liberate 1 | . . . . . 1 . . . . Repair Stations . | . . . . . . . . . . Recycling Units . | . . . . . . . . . . Scanalyzers . | . . . . . . . . . . Garrison Access 1 | . . . . . 1 . . . . Jam 1 | . . . . . 1 . . . . Data Cores Recovered . | . . . . . . . . . . Used . | . . . . . . . . . . Hacking Detections 11 | . 1 . . 5 5 . . . . Full Trace Events . | . . . . . . . . . . Feedback Events . | . . . . . . . . . . Feedback Blocked . | . . . . . . . . . . Robot Schematics Acquired 3 | . . . . . . . . 3 . Robots Built . | . . . . . . . . . . Authchips . | . . . . . . . . . . Time . | . . . . . . . . . . Total Robot Build Rating . | . . . . . . . . . . Part Schematics Acquired 16 | . . . . 1 . . . 15 . Parts Built . | . . . . . . . . . . Authchips . | . . . . . . . . . . Time . | . . . . . . . . . . Total Part Build Rating . | . . . . . . . . . . Parts Repaired 1 | . . . . 1 . . . . . Time 136 | . . . . 136 . . . . . Parts Recycled . | . . . . . . . . . . Recycled Matter . | . . . . . . . . . . Retrieved Matter . | . . . . . . . . . . Retrieved Components . | . . . . . . . . . . Parts Scanalyzed 1 | . . . . 1 . . . . . Part Schematics Acquired 1 | . . . . 1 . . . . . Parts Damaged 1 | . . . . 1 . . . . . Bothacking | -11 -10 -10 -10 -8 -7 -7 -7 -7 -7 ------------ Run | Jun Mat Min Sub Mat Fac Low Low Zio Dee Used RIF Installer . | . . . . . . . . . . Robots Hacked . | . . . . . . . . . . Non-combat . | . . . . . . . . . . Combat . | . . . . . . . . . . Robot Hacks Applied . | . . . . . . . . . . Relay Couplers Released . | . . . . . . . . . . Fabnet Peak Effective % . | . . . . . . . . . . Robots Rewired . | . . . . . . . . . . Allies Hacked . | . . . . . . . . . . Hacks Repelled . | . . . . . . . . . . Allies | -11 -10 -10 -10 -8 -7 -7 -7 -7 -7 -------- Run | Jun Mat Min Sub Mat Fac Low Low Zio Dee Total Allies . | . . . . . . . . . . Largest Group . | . . . . . . . . . . Highest-Rated Group . | . . . . . . . . . . Highest-Rated Ally . | . . . . . . . . . . Total Orders . | . . . . . . . . . . Ally Attacks . | . . . . . . . . . . Total Damage . | . . . . . . . . . . Kills . | . . . . . . . . . . Allies Corrupted . | . . . . . . . . . . Allies Melted . | . . . . . . . . . . Intel | -11 -10 -10 -10 -8 -7 -7 -7 -7 -7 ------- Run | Jun Mat Min Sub Mat Fac Low Low Zio Dee Robot Analysis Total 1 | . . . . 1 . . . . . Derelict Logs Recovered 7 | . . 1 2 . . 2 1 1 . Drone Launches . | . . . . . . . . . . Drone Recoveries . | . . . . . . . . . . Exploration | -11 -10 -10 -10 -8 -7 -7 -7 -7 -7 ------------- Run | Jun Mat Min Sub Mat Fac Low Low Zio Dee Turns Passed 6555 | . 498 1300 1111 467 173 499 375 638 1494 Spaces Moved 7618 | 1 282 440 420 719 366 1045 851 1349 2145 Core 17 | . . . . . . . . . 17 Treads 1018 | . 158 440 420 . . . . . . Legs 125 | 1 124 . . . . . . . . Wheels . | . . . . . . . . . . Hover 1733 | . . . . . . . . . 1733 Flight 4725 | . . . . 719 366 1045 851 1349 395 Fastest Speed 34 | 120 120 160 160 40 40 34 34 44 40 Average Speed 63 | 120 142 160 229 40 40 34 38 44 49 Slowest Speed 400 | 120 160 160 240 40 40 40 109 44 400 Overloaded Moves . | . . . . . . . . . . Propulsion Burnouts . | . . . . . . . . . . Robots Hopped 12 | . . . . 4 . . 8 . . Cave-ins Triggered . | . . . . . . . . . . Exploration Rate (%) 58 | 2 51 94 22 46 12 92 96 85 81 Regions Visited 9 Branch Regions 6 Pre-discovered Areas 4 | . . 1 . . . 1 1 1 . Known Exits Taken 5 | . . . . 1 1 1 1 1 . Unknown Exits Taken 4 | 1 1 1 1 . . . . . . Scrap Searched 12 | . . 1 . . . 5 4 2 . Spaces Dug 59 | . . . 5 6 4 22 6 2 14 Terrain Destroyed 233 | . . . 52 57 4 22 6 2 90 Melee 27 | . . . . 6 4 9 6 2 . Projectile 14 | . . . . . . . . . 14 AOE 192 | . . . 52 51 . 13 . . 76 Terrain Rammed . | . . . . . . . . . . Walls Destroyed . | . . . . . . . . . . Machines Disabled . | . . . . . . . . . . Actions | -11 -10 -10 -10 -8 -7 -7 -7 -7 -7 --------- Run | Jun Mat Min Sub Mat Fac Low Low Zio Dee Total 8930 | . 336 1016 491 883 385 1131 872 1373 2443 Wait 864 | . 11 561 6 119 9 48 7 . 103 Move 7585 | . 281 439 419 710 365 1044 834 1348 2145 Hop 12 | . . . . 4 . . 8 . . Pick Up 50 | . 6 3 2 8 4 1 2 2 22 Fast Attach 52 | . 1 . 2 11 . 2 5 3 28 Attach 19 | . 2 . 2 4 . . 1 1 9 Detach 11 | . . . . 4 . . 1 . 6 Swap 19 | . 3 . 5 2 . 2 . 2 5 Drop 75 | . 4 . 3 14 3 1 4 6 40 Fire 150 | . 26 12 52 1 . 13 . . 46 Melee 85 | . . . . 6 4 20 10 11 34 Ram 2 | . . . . . . . . . 2 Kick . | . . . . . . . . . . Crush 3 | . 2 1 . . . . . . . Escape Stasis . | . . . . . . . . . . Rewire . | . . . . . . . . . . Trap 3 | . . . . . . . . . 3 Miscellaneous . | . . . . . . . . . . Route ------- -11/Junkyard -10/Materials (discovered 3 exits: [*Mat x2] / [*Min]) -10/Mines (discovered 4 exits: [*Mat x2] / [*Exi] / *Sub) -10/Subcaves (discovered 2 exits: *Mat / Rec) -8/Materials (discovered 3 exits: *Fac x3) -7/Factory -7/Lower Caves -7/Lower Caves (discovered 2 exits: [*Fac] / *Zio) -7/Zion (discovered 2 exits: *Dee / [*Pro]) -7/Deep Caves (discovered 1 exit: [*Pro]) History --------- Turn | Location | Event 1 | -11/Junkyard | Discovered new exit (range 0) 1 | -11/Junkyard | Entered Materials 49 | -10/Materials | Discovered new exit (range 15) 77 | -10/Materials | Discovered new exit (range 5) 318 | -10/Materials | Build established: Mutant 357 | -10/Materials | Discovered new exit (range 15) 499 | -10/Materials | Entered Mines 566 | -10/Mines | Found a hidden stash of uninstalled traps 688 | -10/Mines | Learned location of Storage (-7) 711 | -10/Mines | Received a Rocket Launcher from a helpful Derelict 750 | -10/Mines | Discovered new exit (range 5) 842 | -10/Mines | Assembled infested the area 847 | -10/Mines | Assisted by a Guerilla fighting off Assembled 1476 | -10/Mines | Discovered new exit (range 16) 1674 | -10/Mines | Deemed a non-threat by the Exiles lab entrance 1674 | -10/Mines | Discovered new exit (range 5) 1714 | -10/Mines | Found a damaged Exp. Sensor Array with a note attached 1717 | -10/Mines | Found Prototype Device 1783 | -10/Mines | Discovered new exit (range 5) 1799 | -10/Mines | Entered Subcaves 1812 | -10/Subcaves | Learned location of 2 exits from Materials 1974 | -10/Subcaves | Identified exit to Recycling 2161 | -10/Subcaves | Visited 4L-MR0's lab 2405 | -10/Subcaves | Ambushed by angry Subdweller bent on revenge 2551 | -10/Subcaves | Found Flightbrick 2776 | -10/Subcaves | Discovered new exit (range 14) 2910 | -10/Subcaves | Entered Materials 2910 | -8/Materials | Evolved 4 slots: Power x1, Propulsion x2, Utility x1 2911 | -8/Materials | Identified exit to Factory 2913 | -8/Materials | Attached Flightbrick, gained temporary slots: Utility x3 2913 | -8/Materials | Identified Exp. Sensor Array 3179 | -8/Materials | Discovered exit to Factory (range 12) 3358 | -8/Materials | Repaired Broken Exp. Sensor Array 3377 | -8/Materials | Entered Factory 3377 | -7/Factory | Evolved 2 slots: Propulsion x1, Utility x1 3527 | -7/Factory | Discovered new exit (range 5) 3529 | -7/Factory | Identified exit to Lower Caves 3550 | -7/Factory | Entered Lower Caves 3588 | -7/Lower Caves | Learned Factory emergency access door positions 3712 | -7/Lower Caves | Spotted B-75 Beast 3714 | -7/Lower Caves | Learned location of Zion (-7) 3738 | -7/Lower Caves | Encountered a Warlord checkpoint 3758 | -7/Lower Caves | Discovered new exit (range 4) 3866 | -7/Lower Caves | Build established: Scout 4049 | -7/Lower Caves | Identified exit to Lower Caves 4049 | -7/Lower Caves | Entered another Lower Caves area 4085 | -7/Lower Caves | Discovered new exit (range 10) 4242 | -7/Lower Caves | Discovered new exit (range 11) 4247 | -7/Lower Caves | Identified exit to Zion 4424 | -7/Lower Caves | Entered Zion 4442 | -7/Zion | System corruption cleaned by Quarantine Array 4457 | -7/Zion | Acquired unknown access codes intercepted by a Zionite 4459 | -7/Zion | Discovered new exit (range 8) 4470 | -7/Zion | Found CR-A16's Pointy Stick 4524 | -7/Zion | Learned Factory emergency access door positions 4538 | -7/Zion | Learned location of Warlord (-5) 4566 | -7/Zion | Given the Hacking Drone Bay 4567 | -7/Zion | Found Prototype Device 4572 | -7/Zion | Learned Factory emergency access door positions 4700 | -7/Zion | Identified exit to Deep Caves 4759 | -7/Zion | Identified Hacking Drone Bay 4766 | -7/Zion | Found Prototype Device 5060 | -7/Zion | Saw the warning signs outside the Deep Caves entrance 5062 | -7/Zion | Entered Deep Caves 5155 | -7/Deep Caves | Identified Bomb Factory No. 2 5355 | -7/Deep Caves | Attacked by Z-Imprinter 5423 | -7/Deep Caves | Destroyed Z-Imprinter 5451 | -7/Deep Caves | Build established: Mutant 5453 | -7/Deep Caves | Lost 5 parts (2p1n2u) 5513 | -7/Deep Caves | Found Prototype Protection 5513 | -7/Deep Caves | Identified Zio. Weapon Casing 5600 | -7/Deep Caves | Z-Facility disabled 5643 | -7/Deep Caves | Lost 3 parts (1n1u1w) 5681 | -7/Deep Caves | Lost 3 parts (1u2w) 5805 | -7/Deep Caves | Build established: Scavenger-Mutant 5938 | -7/Deep Caves | Discovered new exit (range 6) 6046 | -7/Deep Caves | Spotted as-61862 6097 | -7/Deep Caves | Found Prototype Protection 6107 | -7/Deep Caves | Found Prototype Protection 6112 | -7/Deep Caves | Found Zio. Weapon Casing 6117 | -7/Deep Caves | Found Zio. Weapon Casing 6236 | -7/Deep Caves | Identified Zio. Heavy Carapace (x2) 6263 | -7/Deep Caves | Core integrity fell below 50% 6265 | -7/Deep Caves | Destroyed as-61862 6524 | -7/Deep Caves | Triggered Deep Caves wall 6524 | -7/Deep Caves | Found Prototype Energy Gun 6526 | -7/Deep Caves | Exposed GOLEM chamber 6529 | -7/Deep Caves | Found GOLEM Unit 6532 | -7/Deep Caves | Found GOLEM Unit 6536 | -7/Deep Caves | Found GOLEM Unit 6541 | -7/Deep Caves | Identified AWS/Thermal 6553 | -7/Deep Caves | Core integrity fell below 20% 6556 | -7/Deep Caves | Destroyed by as-19898 with Assembled Heavy Rifle Last Messages --------------- 06543_ Zio. Light DM Reactor destroyed. 06544_ System corrupted: Component data lost. 06544_ Zio. Biocell destroyed. 06545_ as-12795 destroyed. 06546_ Hover Unit destroyed. 06547_ Zio. Glidesys I destroyed. 06547_ Zio. Light DM Reactor destroyed. 06548_ as-35175 destroyed. 06548_ Zio. Weapon Casing destroyed. 06548_ Knocked back. 06549_ GOLEM Unit beginning Asb. Alloy Leg integration. 06549_ Dropped Hvy. Missile Launcher. 06550_ as-94854 destroyed. 06550_ Dropped Med. Storage Unit. 06550_ Discarded Asb. Alloy Leg. 06551_ GOLEM Unit beginning Asb. Alloy Leg integration. 06551_ as-24291 destroyed. 06551_ Dropped AWS/Thermal. 06551_ as-85014 destroyed. 06551_ Discarded Asb. Alloy Leg. Map ----- +----------------------------------------------------+ | | | | | | | | | | | | | | | | | | | | | | | | | | | | | ????????""#########????????????????????????????? | | ????????" ????????????????????????????? | | ?????????" #????????????????????????????? | | ????????""" ????????????????????????????## | | ????????" #####???????????????????###### | | ????????" # # #??????????????????## | | ????????"" # # #??????????????????# | | ????????" # #####??????????????# | | ????????"" [ a # ##!;#??????????????# | | ????????" %a! aa #; ;##???????###???# | | ????????""" % a aa ;;!; ##?????## ##??# | | ????????" aa a a ;;@! #????## #### | | ????????" a a ; ;;###??## | | ????????"]a aaaa #### | | ???????## a a ;#; # ####### | | ??????#" " aaa ;# ;] ###??## ## | | ??????# " a ##### ### ##??# ##? | | ??????#""" aaaa g #?###?## #??# #?? | | ?????????" a ####??????## ##?# ### | | ?????????" #??????????# ### # | | ????????? = #??????????# | | ???????? = #?????????# | | ???????? ????????## ##### | | ???????? = ???????## ####???## | | ??????? ????????# ##???????# | | ???????? ]== ?????????# ##????????# | | ???????? = = ??????????# ##?????????# | | ???????? ] ? ??????????# ##????####### | | ????????? ?????? ?????????# #????## | | ??????????????????? ???????## #????# | | ??????????????????? = ??????## ##??## #### | | ?????????????????? ?????# #### #??# | | ?????????????????? ????# ## ##?## | | ????????????????? ???# ##??# | | ????????????????? [ ???## ###??## | | ????????????????? ???### ####???## | +----------------------------------------------------+ Best States ------------- Heat Dissipation 86 Energy Generation 49 Energy Capacity 700 Matter Stores 300 Matter Capacity 300 Sight Range 20 Robot Scan Range 20 Terrain Scan Density 10 Additional Mass Support 9 Armor Coverage 1200 Resistance: TH 20 Core Shielding 20 Weapon Shielding 100 Phase Shifting 5 Evasion (%) 71 Melee Accuracy 6 Recoil Reduction 2 Item Schematics ----------------- Exp. Sensor Array | -8/Materials | Scanalyzed Hvy. Laser | -7/Zion | Archive Imp. Proton Missile Launcher | -7/Zion | Archive Mak. Leg | -7/Zion | Archive 0b10 Decoder Chip [Scout] | -7/Zion | Archive Mak. Salvage Targeting Computer | -7/Zion | Archive Imp. Heavy Armor Plating | -7/Zion | Archive Power Maul | -7/Zion | Archive Tesla Rifle | -7/Zion | Archive Disruptor Cannon | -7/Zion | Archive Coolant Injector | -7/Zion | Archive Force Field | -7/Zion | Archive Power Sword | -7/Zion | Archive 0b10 Decoder Chip [Generic] | -7/Zion | Archive Ripper | -7/Zion | Archive Tiamat Missile Launcher | -7/Zion | Archive Robot Schematics ------------------ R-06 Scavenger | -7/Zion | Archive L-41 Fighter | -7/Zion | Archive T-07 Excavator | -7/Zion | Archive Fabricated ------------ Nothing Alien Tech Used ----------------- None Achievements -------------- None Challenges ------------ None Game ------ Seed DefenseTachyonSuperbattery Manual? 0 Play Time 00:41:32 Cumulative 370.5 hours Start 2023.06.27 @ 07:08:16 End 2023.06.27 @ 08:50:27 Sessions 2 Manual Loads 0 Difficulty Rogue Special Mode None Game No. 538 Rogue 511 Adventurer 4 Explorer 23 Win Type - Total 20 Types 14/0/2/2/1/0/0/1/0 Lore% 79 Gallery% 91 Achievement% 83 Wizard Run 0 Options --------- ASCII 0 Keyboard 1 Movement Numpad Keybinds 0 Fullscreen 1 Font 18/SmallcapsGlow Map View 76x50 Tactical HUD 1 Map Filters NONE Filters NONE Steam 1 RUN: b2b4eb92-1147-4058-a96e-80198a57c2fb